[Event "AUT Bundesliga 2024-25"]
[Site "Austria"]
[Date "2025.04.04"]
[Round "9.23"]
[White "Schreiner, Peter"]
[Black "Perunovic, Milos"]
[Result "1/2-1/2"]
[Annotator "TA"]
[ECO "A30"]
[WhiteElo "2425"]
[BlackElo "2501"]
[PlyCount "77"]
[EventDate "2024.08.28"]
[EventType "team-tourn"]
[EventCountry "AUT"]
[SourceTitle "playchess.com"]
[Source "ChessBase"]
[SourceQuality "1"]
[TimeControl "40/5400+30:1800+30"]

{[%evp 17,77,0,12,0,11,10,17,0,10,14,10,5,8,6,44,15,10,15,41,34,52,62,93,97,97,90,89,-535,8,-50,313,-419,69,60,67,58,70,67,62,69,69,69,215,27,24,23,20,34,25,6,29,30,55,38,34,32,34,0,0,0,0,0]} 1. Nf3 {[%emt 0:00:06]} Nf6 {[%emt 0:01:16][%cal Bg8f6,Bf6d5,Bd5b4][%mdl 32]} 2. g3 {[%emt 0:02:16]} c5 {[%emt 0:03:03]} 3. Bg2 {[%emt 0:01:51]} Nc6 {[%emt 0:00:36]} 4. c4 {[%emt 0:02:59]} d5 {[%emt 0:03:51]} 5. cxd5 {[%emt 0:02:03]} Nxd5 {[%emt 0:00:33]} 6. d4 {[%emt 0:00:18]} cxd4 {[%emt 0:04:10]} 7. Nxd4 {[%emt 0:00:08]} Ndb4 {[%emt 0:00:16]} 8. Nxc6 {[%emt 0:00:22]} Qxd1+ {[%emt 0:00:09]} 9. Kxd1 {[%emt 0:00:05]} Nxc6 {[%emt 0:00:08]} 10. Nc3 {[%emt 0:04:00] Not much happening anymore A30: Symmetrical English: Double Fianchetto and Hedgehog.} Bd7 {[%emt 0:12:43]} 11. Be3 {[%emt 0:02:04]} Rc8 {[%emt 0:15:32]} 12. Ke1 {[%emt 0:08:03]} g6 {[%emt 0:04:44]} 13. f4 {[%emt 0:03:39]} Bg7 {[%emt 0:00:37]} 14. Rc1 {[%emt 0:01:21]} O-O {[%emt 0:16:20]} 15. Kf2 {[%emt 0:03:00]} e5 {[%emt 0:05:52]} 16. Rhd1 {[%emt 0:07:50]} exf4 {[%emt 0:01:19]} 17. gxf4 {[%emt 0:00:48]} Be6 {[%emt 0:00:48]} 18. Nd5 $146 {[%emt 0:16:48][%cal Oc1c6]} (18. b3 Nb4 19. Bd4 b6 20. Bxg7 Kxg7 21. Rd4 Nc6 22. Rdd1 Nb4 23. Rd4 Nc6 24. Rdd1 Nb4 {½-½ Gelfand,B (2731)-Nepomniachtchi,I (2705) ACP Masters Gp-A rapid 2015 (2)}) 18... Rfe8 {[%emt 0:05:22]} 19. b4 {[%emt 0:03:42] Hoping for b5.} a6 {[%emt 0:08:12]} 20. a4 {[%emt 0:03:32] White is more active.} Bb2 {[%emt 0:07:45][%cal Oe6d5] [#] aiming for ...Bxd5!.} 21. Rc2 {[%emt 0:17:43]} Bxd5 {[%emt 0:00:25]} 22. Bf3 $2 {[%emt 0:18:52][%mdl 8192]} (22. Bxd5 $16 Bf6 23. Bxc6 Rxc6 24. Rxc6 bxc6 25. Rc1) 22... Be4 $2 (22... Nxb4 23. Rxc8 Rxc8 24. Bxd5 $17) (22... Bb3 $19 23. Rxb2 Bxd1) 23. Bxe4 {[%emt 0:00:00]} (23. Rxb2 $11 Bxf3 24. Kxf3) 23... Bd4 $2 {[%emt 0:08:19][%mdl 8192] [#]} (23... Nxb4 $6 24. Rxc8 (24. Rxb2 Rxe4 25. Rd7 Rce8 $15) 24... Rxc8 25. Bxb7 $16) (23... Rxe4 $15 {keeps the upper hand.} 24. Rxb2 Nxb4 (24... Rxb4 25. Rxb4 Nxb4 26. Rd6 $15)) 24. Bd5 $4 {[%mdl 8192]} Bf6 $2 {[%emt 0:00:00]} (24... Rxe3 25. Rxd4 $14) (24... Nxb4 25. Rxc8 Bxe3+ 26. Kf3 Rxc8 27. Kxe3 $17) (24... Bxe3+ $19 25. Kg3 Nxb4 26. Rxc8 Rxc8 27. Bxb7 Rc3) 25. Rdc1 {[%emt 0:00:00][%cal Rd5c6]} Rb8 {[%emt 0:00:00]} 26. Bxc6 {[%emt 0:00:00]} bxc6 {[%emt 0:00:00]} 27. Rxc6 {[%emt 0:00:00]} Bh4+ {[%emt 0:00:00]} 28. Kf3 {[%emt 0:00:00]} Rxb4 {[%emt 0:00:00]} 29. Rc8 $1 {[%emt 0:01:46]} (29. Rxa6 $2 Rb3 30. Kg4 Bd8 $19 (30... Rexe3 $2 31. Kxh4 h6 32. Rc5 $19)) 29... Bd8 {[%emt 0:00:20]} ({Black should try} 29... Rb8 $14 30. Rxe8+ Rxe8) 30. Rd1 $2 {[%emt 0:01:30]} ({White should try} 30. Bc5 $18 Rxa4 31. Rd1 Rxf4+ 32. Kxf4 Bg5+ 33. Kxg5 Rxc8 34. Kh6) 30... Rbe4 $11 {[%emt 0:00:49]} 31. Bf2 {[%emt 0:00:34]} Ba5 {[%emt 0:01:15][%cal Bd8a5,Ba5e1,Be1b4][%mdl 32]} 32. Rxe8+ {[%emt 0:00:14]} Rxe8 {[%emt 0:00:01][%mdl 4096] Endgame KRB-KRB} 33. Rd6 {[%emt 0:00:52]} Ra8 {[%emt 0:00:47]} 34. Bc5 {[%emt 0:00:31]} Be1 {[%emt 0:01:11]} 35. Bb6 {[%emt 0:00:30]} Bb4 {[%emt 0:00:40]} 36. Rd4 {[%emt 0:00:24]} a5 {[%emt 0:00:06]} 37. Rd8+ {[%emt 0:00:31]} Rxd8 {[%emt 0:00:01]} 38. Bxd8 {[%emt 0:00:01]} f5 {[%emt 0:00:21]} 39. e4 {[%emt 0:00:26] Weighted Error Value: White=0.59/Black=0.74  Loses game:     	White=1     	Black=1      Missed win:     	White=2     	Black=2      Mistake:       	White=1     	Black=1      Inaccurate:     	White=2     	Black=3      OK:         	White=11    	Black=10     Best:        	White=1     	Black=2      Strong:       	White=1     	---} 1/2-1/2

[Event "AUT Bundesliga 2024-25"]
[Site "Austria"]
[Date "2025.04.04"]
[Round "9.24"]
[White "Ivanisevic, Ivan"]
[Black "Diermair, Andreas"]
[Result "1/2-1/2"]
[Annotator "TA"]
[ECO "D38"]
[WhiteElo "2527"]
[BlackElo "2445"]
[PlyCount "62"]
[EventDate "2024.08.28"]
[EventType "team-tourn"]
[EventCountry "AUT"]
[SourceTitle "playchess.com"]
[Source "ChessBase"]
[SourceQuality "1"]
[TimeControl "40/5400+30:1800+30"]

{[%evp 9,62,2,19,0,0,0,0,0,8,0,10,0,0,0,11,0,12,9,0,0,51,39,56,47,125,0,29,0,0,-11,12,7,20,18,16,17,101,95,108,115,119,120,118,117,114,16,21,0,2,0,0,4,2,0,0]} 1. d4 {[%emt 0:00:02]} e6 {[%emt 0:00:08]} 2. c4 {[%emt 0:00:41]} Nf6 {[%emt 0:00:04]} 3. Nc3 {[%emt 0:00:17]} Bb4 {[%emt 0:00:12]} 4. Nf3 {[%emt 0:00:29]} d5 {[%emt 0:01:37]} 5. Qc2 {[%emt 0:00:18]} dxc4 {[%emt 0:02:20]} 6. a3 {[%emt 0:00:10] D38: Queen's Gambit Declined: Ragozin Defence (4 Nf3 Bb4).} Bxc3+ {[%emt 0:00:11]} 7. bxc3 {[%emt 0:00:06]} c5 {[%emt 0:00:55]} 8. e4 {[%emt 0:00:06]} Nc6 {[%emt 0:03:37][%cal Rc5d4]} 9. Bxc4 {[%emt 0:01:21]} cxd4 {[%emt 0:02:45]} 10. cxd4 {[%emt 0:00:35]} Nxd4 {[%emt 0:01:39]} 11. Qb2 $146 {[%emt 0:00:07]} (11. Qc3 Nc6 12. O-O O-O 13. Bb2 Qa5 14. Qe3 e5 15. h3 Re8 16. Ng5 Nd8 17. Qb3 {½-½ Vanheiden,G (2193)-Meissen,F (2555) Remote-ch 2011 email 2013 (3)}) 11... e5 {[%emt 0:05:40]} 12. Be3 {[%emt 0:02:11]} (12. Nxe5 $2 Qa5+ (12... Nxe4 $2 13. Bxf7+ Kf8 14. O-O $18) 13. Bd2 Qxe5 $19) (12. Nxd4 {simplifies} Qxd4 13. Qxd4 exd4 14. f3) 12... O-O {[%emt 0:03:53]} (12... Nxe4 13. Bb5+ (13. Nxe5 Nc2+ 14. Ke2 Qa5 $11) 13... Kf8 14. Nxd4 Qa5+ 15. Qb4+ Qxb4+ 16. axb4 exd4 17. Bxd4 $14) 13. Nxd4 {[%emt 0:16:34] White sacrificed a pawn} exd4 {[%emt 0:01:19]} 14. Bxd4 {[%emt 0:00:05] A sharp opening} Nxe4 {[%emt 0:05:41]} ({Black should play} 14... Qa5+ $11 15. Bc3 Qa4) 15. O-O $1 $14 {[%emt 0:02:46]} (15. Bxg7 $2 {perishes.} Qa5+ 16. Ke2 Re8 $19) 15... Nd6 {[%emt 0:04:50]} 16. Bb3 {[%emt 0:05:23][%mdl 1024] White has compensation. A strong pair of Bishops.} Nf5 {[%emt 0:03:45] [#]} (16... Qg5 $1 $14) 17. Bc3 {[%emt 0:09:56]} (17. Bc5 $1 $16 {[%cal Of1d1] Rfd1! would now be deadly.} Re8 18. Ba4) 17... Qg5 {[%emt 0:02:42]} 18. Rae1 {[%emt 0:06:07]} Bd7 $1 {[%emt 0:01:56]} 19. Re5 {[%emt 0:07:23]} Rfe8 {[%emt 0:02:31]} (19... Rae8 $5) 20. Bd5 $36 {[%emt 0:12:31][%mdl 2048] White has the initiative.} Bc6 {[%emt 0:07:57]} 21. Bxc6 {[%emt 0:00:28]} bxc6 {[%emt 0:00:07]} 22. Qb7 {[%emt 0:00:14]} Qg6 {[%emt 0:05:41] [#]} (22... Red8 $11) 23. Rfe1 $1 $16 {[%emt 0:02:03] White has more active pieces.} f6 {[%emt 0:00:59]} 24. Rxe8+ {[%emt 0:01:52]} Rxe8 {[%emt 0:00:07]} 25. Qxc6 {[%emt 0:00:21]} (25. Qxa7 Rxe1+ 26. Bxe1 Qe8 $15) 25... Rxe1+ {[%emt 0:02:20]} 26. Bxe1 {[%emt 0:00:05][%mdl 4096] Endgame KQB-KQN} h5 {[%emt 0:00:36]} 27. Qe4 {[%emt 0:07:56]} (27. Qa8+ $16 Kh7 28. Qxa7) 27... Qg4 $11 {[%emt 0:06:14] The position is equal.} 28. Qe8+ {[%emt 0:04:00]} Kh7 {[%emt 0:00:05]} 29. h3 {[%emt 0:11:39]} Qd1 {[%emt 0:01:00]} 30. Qe4 {[%emt 0:00:37]} g6 {[%emt 0:01:46]} 31. Kf1 {[%emt 0:00:40]} Nd4 {[%emt 0:03:40] Weighted Error Value: White=0.15 (very precise) /Black=0.16 (very precise)   Mistake:       	White=2     	Black=3      Inaccurate:     	White=1     	Black=1      OK:         	White=6     	Black=10     Best:        	White=1     	---        Strong:       	White=2     	Black=1} 1/2-1/2

[Event "AUT Bundesliga 2024-25"]
[Site "Austria"]
[Date "2025.04.04"]
[Round "9.25"]
[White "Nguyen, Thai Dai Van"]
[Black "Mons, Leon"]
[Result "1-0"]
[Annotator "TA"]
[ECO "A14"]
[WhiteElo "2668"]
[BlackElo "2479"]
[PlyCount "121"]
[EventDate "2024.08.28"]
[EventType "team-tourn"]
[EventCountry "AUT"]
[SourceTitle "playchess.com"]
[Source "ChessBase"]
[SourceQuality "1"]
[TimeControl "40/5400+30:1800+30"]

{[%evp 12,121,16,21,18,4,16,16,36,23,17,4,14,0,0,-3,34,-22,31,29,49,27,27,27,29,19,36,33,51,34,33,14,14,14,28,7,4,4,4,0,44,44,46,39,39,39,48,42,60,39,47,37,47,48,65,38,41,29,44,5,62,0,49,37,37,37,37,37,37,33,68,32,114,114,137,116,112,88,123,137,145,131,138,139,127,133,142,44,70,0,145,87,81,92,93,0,0,0,118,110,116,0,35,20,466,456,2439,2425,1840,1723,1401,1351]} 1. Nf3 {[%emt 0:00:03]} d5 {[%emt 0:00:18]} 2. g3 {[%emt 0:00:05]} Nf6 {[%emt 0:00:29]} 3. Bg2 {[%emt 0:00:11]} e6 {[%emt 0:00:20]} 4. O-O {[%emt 0:00:24]} Be7 {[%emt 0:00:20]} 5. c4 {[%emt 0:00:13]} O-O {[%emt 0:00:09]} 6. b3 {[%emt 0:02:43]} c5 {[%emt 0:05:33]} 7. cxd5 {[%emt 0:00:22] is cutting edge theory.} Nxd5 {[%emt 0:00:12] A14: English Opening: 1...e6 with b3 by White.} 8. Nc3 {[%emt 0:00:15]} Bf6 {[%emt 0:10:03]} 9. Bb2 {[%emt 0:00:06]} Nxc3 {[%emt 0:00:47] The position is equal.} 10. dxc3 $5 {[%emt 0:01:57][%mdl 4] Leaves trodden paths.} Bd7 {[%emt 0:05:20]} 11. Nd2 $146 {[%emt 0:11:44]} (11. Qc2 Qc7 12. Rad1 Bc6 13. e4 Nd7 14. Nd2 Rfd8 15. f4 b5 16. Rfe1 Qb7 17. Nf1 {1-0 Lagunow,R (2411)-Stevanic,D (2253) EU-chT U18 Bad Blankenburg 2018 (4.4)}) 11... Bc6 {[%emt 0:00:35]} 12. Ne4 {[%emt 0:00:46]} Be7 {[%emt 0:01:29]} 13. Qc2 {[%emt 0:00:29]} Nd7 {[%emt 0:07:02][%cal Oc5c4]} 14. Rad1 {[%emt 0:00:54]} (14. c4 $14) 14... Qc7 {[%emt 0:00:14]} (14... c4 $1 $11) 15. c4 $14 {[%emt 0:04:28]} Rfd8 {[%emt 0:00:42]} 16. Bc1 {[%emt 0:08:30][%cal Bb2c1,Bc1f4,Bf4e5][%mdl 32]} Nf6 {[%emt 0:09:54]} 17. Bf4 {[%emt 0:01:06]} Qb6 {[%emt 0:00:40]} 18. Be5 {[%emt 0:02:46]} Rxd1 {[%emt 0:16:22]} 19. Rxd1 {[%emt 0:00:10]} Rd8 {[%emt 0:00:14] ...Rxd1+ would now be deadly.} 20. Nxf6+ {[%emt 0:11:05]} Bxf6 {[%emt 0:00:17]} 21. Bxf6 {[%emt 0:00:15]} Rxd1+ {[%emt 0:05:12]} 22. Qxd1 {[%emt 0:00:09]} gxf6 {[%emt 0:00:03][%mdl 4096] Endgame KQB-KQB} 23. Qd6 {[%emt 0:02:29]} Qa5 $1 {[%emt 0:02:05]} 24. Bxc6 {[%emt 0:04:20]} bxc6 $11 {[%emt 0:00:30] KQ-KQ} 25. a4 {[%emt 0:10:30]} Qb4 {[%emt 0:04:43]} 26. Qd3 {[%emt 0:05:04]} Kg7 {[%emt 0:05:15]} 27. Qf3 {[%emt 0:00:27]} Qd2 {[%emt 0:06:22]} 28. Kg2 {[%emt 0:05:09]} Qd6 {[%emt 0:00:26]} 29. Qc3 {[%emt 0:01:35]} Qc7 {[%emt 0:05:30]} 30. Kf3 {[%emt 0:04:25]} Qd6 {[%emt 0:02:35]} 31. Qe3 {[%emt 0:00:18]} Qd1 {[%emt 0:01:03]} 32. Kg2 {[%emt 0:01:20]} (32. Qxc5 Qxb3+ 33. Kg2 Qxa4 $17) 32... Qd6 {[%emt 0:00:19]} 33. Qe4 {[%emt 0:03:17]} f5 {[%emt 0:01:40]} 34. Qe3 {[%emt 0:00:23]} Kg6 {[%emt 0:01:22]} 35. Qf3 {[%emt 0:06:14]} h6 {[%emt 0:02:30]} ({Black should play} 35... Qe5 $11) 36. Qe3 {[%emt 0:02:44]} (36. e4 $14) 36... Kg7 {[%emt 0:03:38]} (36... a5 $1 $11) 37. Qc3+ {[%emt 0:01:29]} Kg6 {[%emt 0:01:08]} 38. h4 {[%emt 0:07:07]} e5 $1 {[%emt 0:01:20]} 39. Qa5 {[%emt 0:01:17]} Qe7 {[%emt 0:00:33]} 40. Qd2 {[%emt 0:00:11]} Kg7 {[%emt 0:02:11][%cal Of5f4]} 41. Qd3 {[%emt 0:32:16]} e4 {[%emt 0:10:10]} (41... f4 $14) 42. Qd2 $16 {[%emt 0:00:00]} Qb7 {[%emt 0:02:54]} 43. Qc3+ {[%emt 0:00:00]} f6 {[%emt 0:01:26]} 44. Qe3 {[%emt 0:00:00]} Qe7 {[%emt 0:00:12]} 45. h5 $1 {[%emt 0:00:00]} Kh7 {[%emt 0:04:22]} 46. Qf4 {[%emt 0:00:00]} Qe5 {[%emt 0:00:51]} 47. Qd2 {[%emt 0:00:00]} Qe7 {[%emt 0:01:18]} 48. Qe3 {[%emt 0:00:00]} Kg7 {[%emt 0:00:41]} 49. Kh3 {[%emt 0:00:00]} (49. a5 $16) 49... Qe5 $14 {[%emt 0:02:39][%cal Of5f4]} 50. Kg2 {[%emt 0:00:00]} (50. b4 $1 $14) 50... Qe7 $1 $16 {[%emt 0:00:01]} 51. Qf4 {[%emt 0:00:00]} Qe5 {[%emt 0:00:01]} 52. Qd2 {[%emt 0:00:00]} Qe7 {[%emt 0:00:07] Repels Qd7} 53. Kh3 {[%emt 0:00:55]} (53. Qa5 $16) 53... Qe8 $1 $11 {[%emt 0:04:16]} 54. Kh4 {[%emt 0:02:59]} Qe7 {[%emt 0:00:20] Prevents Qd6} (54... e3 $1 $11 55. Qxe3 Qxe3 56. fxe3 Kf7) 55. Qd1 {[%emt 0:02:05] White is more active.} Kf7 {[%emt 0:02:13] [#]} 56. Qc1 {[%emt 0:01:14]} ({Better is} 56. Kh3 $1 $16) 56... Kg7 {[%emt 0:00:02]} 57. Qd2 {[%emt 0:00:07]} Kh7 $2 {[%emt 0:01:55][%mdl 8192] A mistake that costs the game.} (57... e3 $1 $11 58. Qxe3 Qxe3 59. fxe3 Kf7) 58. Qf4 $18 {[%emt 0:00:08] White is clearly winning.} Qe5 {[%emt 0:00:24]} (58... Qd7 $142 59. g4 e3 60. fxe3 (60. Qxe3 Qd6 $18) 60... Kg7 61. Qxf5 (61. gxf5 Qd1 $18) 61... Qd6 62. Qg6+ Kf8 63. Qxh6+ Kf7) 59. Qxe5 {[%emt 0:01:10]} fxe5 {[%emt 0:00:04]} 60. g4 {[%emt 0:00:36][%cal Bg3g4,Bg4g5][%mdl 32]} Kg7 {[%emt 0:00:18] [#]} 61. g5 $1 {[%emt 0:01:51] Weighted Error Value: White=0.17 (very precise) /Black=0.39  Loses game:     	---       	Black=1      Mistake:       	White=6     	Black=6      Inaccurate:     	White=3     	Black=4      OK:         	White=15    	Black=19     Best:        	White=2     	---        Strong:       	---       	Black=4} ({Not} 61. gxf5 Kf6 $11) 1-0

[Event "AUT Bundesliga 2024-25"]
[Site "Austria"]
[Date "2025.04.04"]
[Round "9.26"]
[White "Koelle, Tobias"]
[Black "Pechac, Jergus"]
[Result "1/2-1/2"]
[Annotator "TA"]
[ECO "D41"]
[WhiteElo "2459"]
[BlackElo "2600"]
[PlyCount "63"]
[EventDate "2024.08.28"]
[EventType "team-tourn"]
[EventCountry "AUT"]
[SourceTitle "playchess.com"]
[Source "ChessBase"]
[SourceQuality "1"]
[TimeControl "40/5400+30:1800+30"]

{[%evp 11,63,33,41,34,31,-2,29,27,32,30,24,19,26,27,18,23,18,42,37,35,43,39,29,31,24,23,38,42,33,40,28,36,45,40,40,18,14,14,10,0,0,3,3,0,0,0,0,0,7,0,0,0,0,0]} 1. d4 {[%emt 0:00:04]} Nf6 {[%emt 0:00:06]} 2. c4 {[%emt 0:00:05]} e6 {[%emt 0:00:03]} 3. Nf3 {[%emt 0:00:07]} d5 {[%emt 0:00:04]} 4. Nc3 {[%emt 0:00:05]} c5 {[%emt 0:00:04]} 5. cxd5 {[%emt 0:00:04]} cxd4 {[%emt 0:00:04]} 6. Qxd4 {[%emt 0:00:40]} exd5 {[%emt 0:00:05]} 7. e4 {[%emt 0:02:00]} dxe4 {[%emt 0:00:05]} 8. Qxd8+ {[%emt 0:00:04]} Kxd8 {[%emt 0:00:06]} 9. Ng5 {[%emt 0:00:06][%csl LRe4,LRf7] White has an edge.} Be6 {[%emt 0:00:03]} 10. Nxe6+ {[%emt 0:00:45]} fxe6 {[%emt 0:00:06]} 11. Bg5 {[%emt 0:02:16]} Nc6 {[%emt 0:00:24]} 12. Bc4 {[%emt 0:02:32]} Ke7 {[%emt 0:01:43]} 13. Nxe4 {[%emt 0:02:20]} Kf7 {[%emt 0:00:07]} 14. Bxf6 {[%emt 0:00:15]} gxf6 {[%emt 0:00:06]} 15. O-O-O {[%emt 0:01:10]} Rd8 {[%emt 0:00:05] Against Rd7+} ({Reject} 15... Ne5 16. Bb3 $16) 16. Rxd8 {[%emt 0:00:04]} Nxd8 {[%emt 0:00:03]} 17. Rd1 {[%emt 0:00:08]} Be7 {[%emt 0:00:06]} 18. Rd7 {[%emt 0:02:30] [#] Black must now prevent Nd6+.} f5 {[%emt 0:00:08]} 19. Nd6+ {[%emt 0:00:08]} Kf6 {[%emt 0:00:04]} 20. Nxb7 {[%emt 0:00:16]} Nxb7 {[%emt 0:00:05]} 21. Rxb7 $14 {[%emt 0:00:06][%mdl 4096] Endgame KRB-KRB. White is a pawn up.} Bc5 {[%emt 0:00:04]} 22. f3 {[%emt 0:05:31]} Bg1 {[%emt 0:03:05][%cal Oh7h5]} 23. h3 {[%emt 0:11:15]} h5 {[%emt 0:00:11] The position is equal.} 24. Rc7 {[%emt 0:04:00]} Rg8 {[%emt 0:00:13] [#]} 25. g4 $1 {[%emt 0:00:52]} hxg4 {[%emt 0:00:34]} 26. hxg4 {[%emt 0:00:08]} fxg4 {[%emt 0:00:04]} 27. fxg4 {[%emt 0:00:41]} Rxg4 {[%emt 0:00:11]} 28. Rc6 {[%emt 0:00:34]} Re4 {[%emt 0:00:05]} 29. Kd2 {[%emt 0:02:32]} Ke7 {[%emt 0:00:23]} 30. Be2 {[%emt 0:01:30]} Rd4+ {[%emt 0:00:08]} 31. Bd3 {[%emt 0:00:26]} Rd6 {[%emt 0:00:03]} 32. Rxd6 {[%emt 0:00:06] Weighted Error Value: White=0.02 (flawless) /Black=0.01 (flawless)   Inaccurate:     	---       	Black=1      OK:         	White=12    	Black=13     Best:        	White=2     	Black=1} 1/2-1/2

[Event "AUT Bundesliga 2024-25"]
[Site "Austria"]
[Date "2025.04.04"]
[Round "9.27"]
[White "Zilka, Stepan"]
[Black "Deuer, Marius"]
[Result "1/2-1/2"]
[Annotator "TA"]
[ECO "B11"]
[WhiteElo "2515"]
[BlackElo "2464"]
[PlyCount "97"]
[EventDate "2024.08.28"]
[EventType "team-tourn"]
[EventCountry "AUT"]
[SourceTitle "playchess.com"]
[Source "ChessBase"]
[SourceQuality "1"]
[TimeControl "40/5400+30:1800+30"]

{[%evp 10,97,13,7,8,8,10,11,30,9,11,17,23,16,16,23,39,22,25,0,20,17,20,23,21,26,30,25,52,53,54,35,29,29,58,53,53,37,61,53,66,48,43,57,52,25,51,6,9,0,0,0,0,0,0,0,0,0,0,0,8,8,8,8,8,8,20,8,8,8,12,16,12,14,13,31,76,0,0,0,0,0,0,0,0,0,0,0,0,0]} 1. e4 {[%emt 0:00:04]} c6 {[%emt 0:00:05]} 2. Nf3 {[%emt 0:00:04]} d5 {[%emt 0:00:05]} 3. Nc3 {[%emt 0:00:02]} Bg4 {[%emt 0:00:09]} 4. h3 {[%emt 0:00:07]} Bxf3 {[%emt 0:00:05]} 5. Qxf3 {[%emt 0:00:04]} e6 {[%emt 0:00:07]} 6. g3 {[%emt 0:00:12]} d4 {[%emt 0:00:26] B11: Caro-Kann: Two Knights Variation.} 7. Ne2 {[%emt 0:03:15]} Nd7 {[%emt 0:17:11]} 8. Bg2 {[%emt 0:00:06]} ({Much worse is} 8. Nxd4 Ne5 9. Qe2 Qxd4 $17) 8... c5 $146 {[%emt 0:01:53]} (8... Ne5 9. Qb3 d3 10. Qc3 f6 11. Nf4 Qd7 12. Nxd3 Nxd3+ 13. Qxd3 Qxd3 14. cxd3 O-O-O {½-½ Kosteniuk,A (2516)-Anton Guijarro,D (2694) Chess.com Rapid Wk5 Swiss 2022 (1)}) 9. O-O {[%emt 0:01:34][%cal Oe4e5]} Ne7 {[%emt 0:06:47]} 10. Qb3 {[%emt 0:15:03]} Qb6 {[%emt 0:09:47]} 11. d3 {[%emt 0:00:06]} Nc6 {[%emt 0:00:06]} 12. Bd2 {[%emt 0:00:29]} Bd6 {[%emt 0:02:33]} 13. f4 {[%emt 0:00:44]} e5 {[%emt 0:01:12]} 14. h4 {[%emt 0:06:38]} Qxb3 {[%emt 0:14:12]} 15. axb3 {[%emt 0:00:09]} O-O-O {[%emt 0:00:06][%cal Be8c8,Bc8b8,Bb8b7][%mdl 32]} 16. Bh3 {[%emt 0:01:37]} Kb8 {[%emt 0:00:15]} 17. Kg2 {[%emt 0:01:43]} Rhf8 {[%emt 0:01:59]} 18. Ng1 {[%emt 0:03:37]} b5 {[%emt 0:06:33]} 19. Nf3 {[%emt 0:03:49]} Kb7 {[%emt 0:00:07]} 20. Rf2 {[%emt 0:13:38]} h6 {[%emt 0:02:15]} 21. Raf1 {[%emt 0:04:26]} f6 {[%emt 0:07:15]} 22. Be6 {[%emt 0:04:16] Black is weak on the light squares} Nb6 {[%emt 0:00:51]} 23. Kh3 {[%emt 0:07:47]} Rde8 {[%emt 0:03:19]} 24. Bf5 {[%emt 0:01:45]} c4 {[%emt 0:02:19]} 25. fxe5 {[%emt 0:03:40]} fxe5 {[%emt 0:01:30]} 26. bxc4 {[%emt 0:07:42]} bxc4 {[%emt 0:00:06]} 27. g4 {[%emt 0:00:07][%csl Of5] Strong Square White (f5)} Bb4 {[%emt 0:08:17]} 28. dxc4 {[%emt 0:07:33]} Nxc4 {[%emt 0:02:13]} 29. Bd7 {[%emt 0:00:20]} Nxd2 $1 {[%emt 0:01:27]} 30. Nxd2 {[%emt 0:00:15]} Rxf2 $1 {[%emt 0:01:45]} 31. Rxf2 {[%emt 0:00:05]} Re7 {[%emt 0:00:03]} 32. Bxc6+ {[%emt 0:01:24]} Kxc6 $11 {[%emt 0:00:02][%mdl 4096] Endgame KRB-KRN} 33. Nc4 {[%emt 0:00:06]} Kc5 {[%emt 0:04:13]} (33... Kb5 $5 34. b3 $8 Be1 $16) 34. b3 {[%emt 0:01:32]} Bc3 {[%emt 0:00:52]} 35. g5 {[%emt 0:06:45]} hxg5 {[%emt 0:01:55]} 36. hxg5 {[%emt 0:00:05]} d3 {[%emt 0:03:16]} 37. cxd3 {[%emt 0:00:07]} Kd4 {[%emt 0:00:02]} 38. Rf3 {[%emt 0:00:48] Threatening Ne3.} g6 {[%emt 0:00:01]} 39. Kg4 {[%emt 0:01:27]} Rb7 {[%emt 0:00:59]} 40. Rf6 {[%emt 0:05:02] [#]} Kxd3 {[%emt 0:01:01]} 41. Rxg6 {[%emt 0:31:30]} Rxb3 {[%emt 0:08:33]} 42. Nd6 {[%emt 0:00:00]} Rb1 {[%emt 0:03:10] [#]} 43. Rh6 {[%emt 0:00:00]} ({White should try} 43. Rg8 $1 $16) 43... Rg1+ $1 {[%emt 0:05:03] The position is equal.} 44. Kf5 {[%emt 0:00:00]} Rxg5+ $1 {[%emt 0:00:43]} 45. Kxg5 {[%emt 0:00:00] Rh3+ is the strong threat.} Bd2+ {[%emt 0:00:04]} 46. Kg6 {[%emt 0:00:00]} Bxh6 {[%emt 0:00:07]} 47. Kxh6 {[%emt 0:00:00]} a5 {[%emt 0:00:34]} 48. Nb7 {[%emt 0:00:00]} Kxe4 {[%emt 0:00:19] ...a4 would now be deadly.} (48... a4 $5 49. Nc5+ $8 Kd4 50. Nxa4 Kxe4 $11) 49. Nxa5 {[%emt 0:00:00] Weighted Error Value: White=0.08 (flawless) /Black=0.06 (flawless)   Mistake:       	White=1     	---        Inaccurate:     	White=2     	Black=4      OK:         	White=20    	Black=12     Best:        	---       	Black=4      Strong:       	---       	Black=4} 1/2-1/2